{"text_format":"1","workbook":"xlsx","n_sheets":3,"sheets":["Instruccions","Reformulació Pressupost C","Resum Pressupost"],"not_rendered":{"charts":0,"images":5,"macros":1,"external_links":0,"defined_names":8,"comments":2,"pivot_tables":0},"unopened":[],"bounds":{"document_bytes":16777216,"sheet_cells":100000,"rows_first":2000,"rows_last":500,"rows_between":2000,"halvings":0,"cell_chars":16384,"cell_head_chars":4096},"cells_cut":0,"cells_raw":0,"read":"whole","date_system":"1900"}

{"sheet":"Instruccions","index":0,"n_rows":24,"n_cols":9,"rows_kept":24,"cut":false,"hidden":false,"merged":[[1,8,1,11],[22,1,22,16],[23,1,23,16],[2,2,2,17],[4,2,4,17]]}
[]
[null,null,null,null,null,null,null,null,"Doc_basic3_pressup_reformulat_C_INSTRUCCIONS"]
[null,null,"SUBVENCIONS DE L’AJUNTAMENT DE BARCELONA PER L’ENFORTIMENT DE L’ECONOMIA SOCIAL I SOLIDÀRIA I PER LA INTERCOOPERACIÓ EN L’ESTRATÈGIA #ESSBCN2030 - ENFORTIM L’ESS 2023"]
[]
[null,null,"Aspectes rellevants relacionats amb la reformulació"]
[]
[]
[]
[]
[null,"1. Emplenar la pestanya  \"Reformulació Pressupost\" amb les dades econòmiques del projecte:"]
[null,"1.1  Emplenar els quadres DADES BÀSIQUES-PREVISIÓ DE DESPESES DEL PROJECTE SUBVENCIONABLE INICIAL, amb les dades econòmiques de la proposta inicial amb subvenció atorgada."]
[null,"1.2  Emplenar els quadres DADES BÀSIQUES-PREVISIÓ DE DESPESES DEL PROJECTE REFORMULAT, amb les dades econòmiques de la proposta de reformulació."]
[null,"2. Revisar i emplenar la pestanya  \"Resum Pressupost\" amb les dades econòmiques del projecte:"]
[null,"3. Imprimir els fulls de les 2 pestanyes (Reformulació pressupost i Resum Pressupost). En format pdf."]
[]
[]
[]
[null,"Clica la icona per generar un document PDF del llibre"]
[]
[]
[]
[]
[null,"4. Si la sol·licitud es va presentar per via telemàtica, cal que registreu la documentació, telemàticament, com a tràmit específic, dins la convocatòria específica com annexió de documents addicionals i feu servir el número de tràmit que el sistema de registre us va donar en el moment de la presentació de la sol·licitud de la subvenció."]
[null,"5. En el cas que registreu la documentació telemàticament, com a instància genèrica, mitjançant certificat digital, us recomanem que aviseu a l'adreça de correu electrònic subvencions_ec_solidaria@bcn.cat, per tal de poder fer-ne un seguiment, així com també en els casos que presenteu la documentació a través d'una Oficina d'Atenció Ciutadana de l'Ajuntament, si no heu pogut obtenir el certificat digital (els requisits per obtenir-lo els trobareu a l'Oficina Virtual de Tràmits de la Seu Electrònica: https://seuelectronica.ajuntament.barcelona.cat/oficinavirtual/)."]

{"sheet":"Reformulació Pressupost C","index":1,"n_rows":81,"n_cols":9,"rows_kept":81,"cut":false,"hidden":false,"merged":[[71,0,71,3],[20,0,20,3],[1,1,1,8],[18,0,18,3],[10,6,10,7],[18,6,18,8],[6,2,6,5],[3,0,4,8],[80,0,80,3],[21,0,21,3],[33,0,33,3],[53,0,53,3],[79,0,79,3],[72,0,72,3],[73,0,73,3],[74,0,74,3],[75,0,75,3],[76,0,76,3],[77,0,77,3],[78,0,78,3],[63,2,65,3],[68,0,68,3],[69,0,69,3],[70,0,70,3]]}
[]
[null,"Reformulació pressupost Modalitat C"]
[]
["Programa de subvencions de l'Ajuntament de Barcelona per a la reactivació i l'enfortiment de l'Economia Social i Solidària i el desenvolupament de projectes d'intercooperació que desenvolupen l'Estratègia #ESSBCN2030"]
[]
[]
[]
["DADES BÀSIQUES"]
["Nom de la persona física/ jurídica",null,{"$f":"+IF(H9>Dadesbasiques[[#This Row],[Columna1]],\"ALERTA: La quantia de la subvenció atorgada no pot superar el 80% de la despesa total del projecte a subvencionar\", \" \")","v":" "},null,null,"  "]
["NIF de la persona física/ jurídica",null,{"$f":"+IF(H10>Dadesbasiques[[#This Row],[Columna1]],\"ALERTA: La quantia de la subvenció atorgada no pot superar el 80% de la despesa total del projecte a subvencionar\", \" \")","v":" "}]
["Nom del projecte subvencionable",null,{"$f":"+IF(H11>Dadesbasiques[[#This Row],[Columna1]],\"ALERTA: La quantia de la subvenció atorgada no pot superar el 80% de la despesa total del projecte a subvencionar\", \" \")","v":" "},null,null,null,"DADES BÀSIQUES PROJECTE REFORMULAT"]
["Import total del projecte subvencionable",null,null,null,null,null,"Import total del projecte REFORMULAT"]
["Import imputable a la subvenció municipal",null,null,null,null,null,"Import imputable a la subvenció ATORGADA"]
["Import de l'aportació / Cofinançament de l'organització",{"$f":"+B12-B13","v":0},null,null,null,null,"Import de l'aportació / Cofinançament de l'organització",{"$f":"H12-H13","v":0}]
["% de l'import sol·licitat respecte el total del projecte subvencionable (*)",{"$f":"B13/B12","v":{"$error":"#DIV/0!"}},null,null,null,null,"% de l'import sol·licitat respecte el total del projecte subvencionat",{"$f":"H13/H12","v":{"$error":"#DIV/0!"}},{"$f":"+IF(H15>Dadesbasiques[[#This Row],[Columna1]],\"*Aquest percentatge ha de ser igual o menor al percentatge subvencionat inicialment.\",\" \")","v":{"$error":"#DIV/0!"}}]
["Data inici del projecte subvencionat (dd/mm/aaaa)",null,{"$f":"+IF(H16>Dadesbasiques[[#This Row],[Columna1]],\"ALERTA: La quantia de la subvenció atorgada no pot superar el 80% de la despesa total del projecte a subvencionar\", \" \")","v":" "}]
["Data fi del projecte subvencionat (dd/mm/aaaa)",null,{"$f":"+IF(H17>Dadesbasiques[[#This Row],[Columna1]],\"ALERTA: La quantia de la subvenció atorgada no pot superar el 80% de la despesa total del projecte a subvencionar\", \" \")","v":" "}]
[]
["PREVISIÓ DE DESPESES DEL PROJECTE SUBVENCIONABLE INICIAL",null,null,null,null,null,"PREVISIÓ DE DESPESES DEL PROJECTE REFORMULAT"]
[]
["PREVISIÓ DE DESPESES DEL PROJECTE SUBVENCIONABLE PER l´ÀMBIT C: SECTORS ESTRATÈGICS: Cooperativisme d’Habitatge en cessió d’ús"]
["Activitats A) La fase de redacció de Projecte d’Obres de nova construcció o rehabilitació integral o la fase de direcció de les obres per part d’Arquitecte i Arquitecte Tècnic, en un 80%  de la subvenció atorgada."]
["PARTIDES","Import imputable a la subvenció municipal","Import de l'aportació / Cofinançament de l'organització","Import total del projecte",null,null,"Import imputable a la subvenció municipal","Import de l'aportació / Cofinançament de l'organització","Import total del projecte"]
["A.D1.  Honoraris d’arquitecte en la fase de projecte i/ o direcció.",{"$f":"SUM(B25:B27)","v":0},{"$f":"SUM(C25:C27)","v":0},{"$f":"SUM(DespesesProjecteAb115[[#This Row],[Import imputable a la subvenció municipal]],DespesesProjecteAb115[[#This Row],[Import de l''aportació / Cofinançament de l''organització]])","v":0},null,null,{"$f":"SUM(G25:G27)","v":0},{"$f":"SUM(H25:H27)","v":0},{"$f":"+G24+H24","v":0}]
[null,null,null,{"$f":"SUM(DespesesProjecteAb115[[#This Row],[Import imputable a la subvenció municipal]],DespesesProjecteAb115[[#This Row],[Import de l''aportació / Cofinançament de l''organització]])","v":0},null,null,null,null,{"$f":"+G25+H25","v":0}]
[null,null,null,{"$f":"SUM(DespesesProjecteAb115[[#This Row],[Import imputable a la subvenció municipal]],DespesesProjecteAb115[[#This Row],[Import de l''aportació / Cofinançament de l''organització]])","v":0},null,null,null,null,0]
[null,null,null,{"$f":"SUM(DespesesProjecteAb115[[#This Row],[Import imputable a la subvenció municipal]],DespesesProjecteAb115[[#This Row],[Import de l''aportació / Cofinançament de l''organització]])","v":0},null,null,null,null,0]
["A.D2.  Honoraris d’arquitecte tècnic en la fase de direcció.",{"$f":"SUM(B29:B31)","v":0},{"$f":"SUM(C29:C31)","v":0},{"$f":"SUM(DespesesProjecteAb115[[#This Row],[Import imputable a la subvenció municipal]],DespesesProjecteAb115[[#This Row],[Import de l''aportació / Cofinançament de l''organització]])","v":0},null,null,{"$f":"SUM(G29:G31)","v":0},{"$f":"SUM(H29:H31)","v":0},{"$f":"+G28+H28","v":0}]
[null,null,null,{"$f":"SUM(DespesesProjecteAb115[[#This Row],[Import imputable a la subvenció municipal]],DespesesProjecteAb115[[#This Row],[Import de l''aportació / Cofinançament de l''organització]])","v":0},null,null,null,null,{"$f":"+G29+H29","v":0}]
[null,null,null,{"$f":"SUM(DespesesProjecteAb115[[#This Row],[Import imputable a la subvenció municipal]],DespesesProjecteAb115[[#This Row],[Import de l''aportació / Cofinançament de l''organització]])","v":0},null,null,null,null,0]
[null,null,null,{"$f":"SUM(DespesesProjecteAb115[[#This Row],[Import imputable a la subvenció municipal]],DespesesProjecteAb115[[#This Row],[Import de l''aportació / Cofinançament de l''organització]])","v":0},null,null,null,null,0]
["TOTAL DE DESPESES PREVISTES Activitat A",{"$f":"+B28+B24","v":0},{"$f":"+C28+C24","v":0},{"$f":"+D28+D24","v":0},null,null,{"$f":"+G28+G24","v":0},{"$f":"+H28+H24","v":0},{"$f":"+I28+I24","v":0}]
[]
["Activitats B) La fase de redacció del Conveni per a la prestació de serveis i instal•lacions per als socis i els veïns si s’escau, en un 10% de la subvenció atorgada."]
["PARTIDES","Import imputable a la subvenció municipal","Import de l'aportació / Cofinançament de l'organització","Import total del projecte",null,null,"Import imputable a la subvenció municipal","Import de l'aportació / Cofinançament de l'organització","Import total del projecte"]
["B.D1.  Honoraris d’arquitecte per definició dels espais comuns per a les activitats col•laboratives sempre i quan no estiguin totalment definits en el Projecte Executiu.\n",{"$f":"SUM(B37:B39)","v":0},{"$f":"SUM(C37:C39)","v":0},{"$f":"SUM(DespesesProjecteAb11517[[#This Row],[Import imputable a la subvenció municipal]],DespesesProjecteAb11517[[#This Row],[Import de l''aportació / Cofinançament de l''organització]])","v":0},null,null,{"$f":"SUM(G37:G39)","v":0},{"$f":"SUM(H37:H39)","v":0},{"$f":"+G36+H36","v":0}]
[null,null,null,{"$f":"SUM(DespesesProjecteAb11517[[#This Row],[Import imputable a la subvenció municipal]],DespesesProjecteAb11517[[#This Row],[Import de l''aportació / Cofinançament de l''organització]])","v":0},null,null,null,null,{"$f":"+G37+H37","v":0}]
[null,null,null,{"$f":"SUM(DespesesProjecteAb11517[[#This Row],[Import imputable a la subvenció municipal]],DespesesProjecteAb11517[[#This Row],[Import de l''aportació / Cofinançament de l''organització]])","v":0},null,null,null,null,0]
[null,null,null,{"$f":"SUM(DespesesProjecteAb11517[[#This Row],[Import imputable a la subvenció municipal]],DespesesProjecteAb11517[[#This Row],[Import de l''aportació / Cofinançament de l''organització]])","v":0},null,null,null,null,0]
["B.D2.  Honoraris de tècnic agrícola o jardiner pel projecte d’hort i / o jardí comunitari. O honoraris de la gestora pel mateix concepte.",{"$f":"SUM(B41:B43)","v":0},{"$f":"SUM(C41:C43)","v":0},{"$f":"SUM(DespesesProjecteAb11517[[#This Row],[Import imputable a la subvenció municipal]],DespesesProjecteAb11517[[#This Row],[Import de l''aportació / Cofinançament de l''organització]])","v":0},null,null,{"$f":"SUM(G41:G43)","v":0},{"$f":"SUM(H41:H43)","v":0},{"$f":"+G40+H40","v":0}]
[null,null,null,{"$f":"SUM(DespesesProjecteAb11517[[#This Row],[Import imputable a la subvenció municipal]],DespesesProjecteAb11517[[#This Row],[Import de l''aportació / Cofinançament de l''organització]])","v":0},null,null,null,null,{"$f":"+G41+H41","v":0}]
[null,null,null,{"$f":"SUM(DespesesProjecteAb11517[[#This Row],[Import imputable a la subvenció municipal]],DespesesProjecteAb11517[[#This Row],[Import de l''aportació / Cofinançament de l''organització]])","v":0},null,null,null,null,0]
[null,null,null,{"$f":"SUM(DespesesProjecteAb11517[[#This Row],[Import imputable a la subvenció municipal]],DespesesProjecteAb11517[[#This Row],[Import de l''aportació / Cofinançament de l''organització]])","v":0},null,null,null,null,0]
["B.D3. Honoraris d’economista per al compte d’explotació de construcció i/o implementació i el d’explotació. O honoraris de la gestora pel mateix concepte.",{"$f":"SUM(B45:B47)","v":0},{"$f":"SUM(C45:C47)","v":0},{"$f":"SUM(DespesesProjecteAb11517[[#This Row],[Import imputable a la subvenció municipal]],DespesesProjecteAb11517[[#This Row],[Import de l''aportació / Cofinançament de l''organització]])","v":0},null,null,{"$f":"SUM(G45:G47)","v":0},{"$f":"SUM(H45:H47)","v":0},{"$f":"+G44+H44","v":0}]
[null,null,null,{"$f":"SUM(DespesesProjecteAb11517[[#This Row],[Import imputable a la subvenció municipal]],DespesesProjecteAb11517[[#This Row],[Import de l''aportació / Cofinançament de l''organització]])","v":0},null,null,null,null,{"$f":"+G45+H45","v":0}]
[null,null,null,{"$f":"SUM(DespesesProjecteAb11517[[#This Row],[Import imputable a la subvenció municipal]],DespesesProjecteAb11517[[#This Row],[Import de l''aportació / Cofinançament de l''organització]])","v":0},null,null,null,null,0]
[null,null,null,{"$f":"SUM(DespesesProjecteAb11517[[#This Row],[Import imputable a la subvenció municipal]],DespesesProjecteAb11517[[#This Row],[Import de l''aportació / Cofinançament de l''organització]])","v":0},null,null,null,null,0]
["B.D4. Honoraris d’enginyer d’organització o tècnic especialista en organització i explotació d’espais i instal•lacions comunes, serveis compartits i aplicacions informàtiques per a l’ús dels socis i veïns si s’escau.  O honoraris de la gestora pel mateix concepte.",{"$f":"SUM(B49:B51)","v":0},{"$f":"SUM(C49:C51)","v":0},{"$f":"SUM(DespesesProjecteAb11517[[#This Row],[Import imputable a la subvenció municipal]],DespesesProjecteAb11517[[#This Row],[Import de l''aportació / Cofinançament de l''organització]])","v":0},null,null,{"$f":"SUM(G49:G51)","v":0},{"$f":"SUM(H49:H51)","v":0},{"$f":"+G48+H48","v":0}]
[null,null,null,{"$f":"SUM(DespesesProjecteAb11517[[#This Row],[Import imputable a la subvenció municipal]],DespesesProjecteAb11517[[#This Row],[Import de l''aportació / Cofinançament de l''organització]])","v":0},null,null,null,null,{"$f":"+G49+H49","v":0}]
[null,null,null,{"$f":"SUM(DespesesProjecteAb11517[[#This Row],[Import imputable a la subvenció municipal]],DespesesProjecteAb11517[[#This Row],[Import de l''aportació / Cofinançament de l''organització]])","v":0},null,null,null,null,0]
[null,null,null,{"$f":"SUM(DespesesProjecteAb11517[[#This Row],[Import imputable a la subvenció municipal]],DespesesProjecteAb11517[[#This Row],[Import de l''aportació / Cofinançament de l''organització]])","v":0},null,null,null,null,0]
["TOTAL DE DESPESES PREVISTES Activitat B",{"$f":"B48+B44+B40+B36","v":0},{"$f":"C48+C44+C40+C36","v":0},{"$f":"D48+D44+D40+D36","v":0},null,null,{"$f":"G48+G44+G40+G36","v":0},{"$f":"H48+H44+H40+H36","v":0},{"$f":"I48+I44+I40+I36","v":0}]
[]
["Activitats C) Les tasques d’enfortiment, cohesió, dinamització, resolució de conflictes, i participació de les persones sòcies tant en el plantejament del projecte construcció, com en el projecte col.laboratiu i en la mateixa dinàmica de la cooperativa, en un 10% de la subvenció atorgada."]
["PARTIDES","Import imputable a la subvenció municipal","Import de l'aportació / Cofinançament de l'organització","Import total del projecte",null,null,"Import imputable a la subvenció municipal","Import de l'aportació / Cofinançament de l'organització","Import total del projecte"]
["C.D1.  Honoraris de persones o entitats relacionades amb la dinamització, mediació i participació de grups, o de la pròpia gestora per aquests conceptes.\n",{"$f":"SUM(B57:B59)","v":0},{"$f":"SUM(C57:C59)","v":0},{"$f":"SUM(DespesesProjecteAb1151718[[#This Row],[Import imputable a la subvenció municipal]],DespesesProjecteAb1151718[[#This Row],[Import de l''aportació / Cofinançament de l''organització]])","v":0},null,null,{"$f":"SUM(G57:G59)","v":0},{"$f":"SUM(H57:H59)","v":0},{"$f":"+G56+H56","v":0}]
[null,null,null,{"$f":"SUM(DespesesProjecteAb1151718[[#This Row],[Import imputable a la subvenció municipal]],DespesesProjecteAb1151718[[#This Row],[Import de l''aportació / Cofinançament de l''organització]])","v":0},null,null,null,null,{"$f":"+G57+H57","v":0}]
[null,null,null,{"$f":"SUM(DespesesProjecteAb1151718[[#This Row],[Import imputable a la subvenció municipal]],DespesesProjecteAb1151718[[#This Row],[Import de l''aportació / Cofinançament de l''organització]])","v":0},null,null,null,null,0]
[null,null,null,{"$f":"SUM(DespesesProjecteAb1151718[[#This Row],[Import imputable a la subvenció municipal]],DespesesProjecteAb1151718[[#This Row],[Import de l''aportació / Cofinançament de l''organització]])","v":0},null,null,null,null,0]
["TOTAL DE DESPESES PREVISTES Activitat C",{"$f":"+B56","v":0},{"$f":"+C56","v":0},{"$f":"+D56","v":0},null,null,{"$f":"+G56","v":0},{"$f":"+H56","v":0},{"$f":"+I56","v":0}]
["D. AUDITORIA. Per les subvencions atorgades per import igual o superior a 20.000 € és obligatori un informe d'auditoria per a la justificació."]
["D.D1 Despeses de l'informe d'auditoria (màxim 1.500€ subvenció)",null,null,{"$f":"+DespesesProjecteAb1151718[[#This Row],[Import de l''aportació / Cofinançament de l''organització]]+DespesesProjecteAb1151718[[#This Row],[Import imputable a la subvenció municipal]]","v":0},null,null,null,null,{"$f":"+H62+G62","v":0}]
["TOTAL DE DESPESES PREVISTES DEL PROJECTE SUBVENCIONABLE (A+B+C) ",{"$f":"B32+B52+B60+B62","v":0},{"$f":"C32+C52+C60+C62","v":0},{"$f":"D32+D52+D60+D62","v":0},null,null,{"$f":"G32+G52+G60+G62","v":0},{"$f":"H32+H52+H60+H62","v":0},{"$f":"I32+I52+I60+I62","v":0}]
[]
[]
[]
[]
[]
["Àmbit C SECTORS ESTRATÈGICS: Cooperativisme d’Habitatge en cessió d’ús"]
["1. L’import de la subvenció sempre serà màxim del 80% de les despeses esmentades atès que el 20% ha de ser sufragat per la cooperativa."]
["2. L'import màxim de subvenció per a aquesta modalitat C. SECTORS ESTRATÈGICS:  Cooperativisme d’habitatge en cessió  d’ús és 50.000€.\n"]
["3. En el cas que la sol·licitud presentada sobrepassi l’import màxim, es considerarà com a import sol·licitat el màxim de l'establert a la convocatòria."]
["4. Les activitats objecte de la subvenció mitjançant les despeses esmentades en els punts anteriors han de ser meritades en els calendaris d’execució i justificació que preveu la present convocatòria de subvencions i les factures de despeses, el seu venciment i pagament també."]
["5. Per les subvencions atorgades per import igual o superior a 20.000 € és obligatori un informe d'auditoria per a la justificació. L'import d'aquest informe es considera despesa subvencionable i elegible, amb un límit màxim de 1.500 €."]
["6. Quan s'hagi de fer despeses de més de 12.000 €, sense IVA, en el cas de prestacions de serveis o lliurament de béns i per aquelles despeses de més de 30.000 €,  sense IVA, en el cas d'execució d'obres, s'hauran d'incorporar tres pressupostos sol·licitats i argumentar el motiu de l'adjudicació en el cas de no ser la proposta més avantatjosa econòmicament."]
["7. La retribució de les persones contractades en el marc del projecte subvencionat no pot ser inferior al Salari Mínim Interprofessional (SMI), ni a l'estipulada al corresponent conveni o marc normatiu de referència (punt 7 de les bases 2023: requisits dels projectes). "]
["8. Els projectes subvencionats han de fomentar activitats d'interès públic o social, les quals han de ser gratuïtes per a les persones participants o en cap cas el preu ha de suposar un obstacle per a la seva participació, buscant altres formes d'accés per a persones amb dificultats econòmiques. En el cas que hi hagi algun tipus de lucre, haurà de revertir en les pròpies activitats subvencionades."]
["9. L'Ajuntament de Barcelona i les seves entitats municipals en cap cas subvencionaran el mateix projecte, executat durant el mateix període, per cap altre procediment de concessió que no sigui el regulat per les bases reguladores."]
["10. El/la beneficiari/ària no podrà alterar en cap cas el destí de les subvencions concedides."]
["11. L'organització designada com a representant de l'agrupació serà plenament responsable del projecte davant l'Ajuntament respecte al compliment de les obligacions establertes en les bases reguladores, sense perjudici de la responsabilitat de les altres organitzacions sòcies de l'agrupació, tot sent-li d'aplicació els requisits previstos al punt 6.1 de les bases reguladores."]
["12. En cap cas podran formar part de l'agrupació les organitzacions que hagin rebut altres subvencions per a l'execució del mateix projecte d'altres administracions públiques."]

{"sheet":"Resum Pressupost","index":2,"n_rows":24,"n_cols":11,"rows_kept":24,"cut":false,"hidden":false,"merged":[[23,6,23,9],[18,6,18,7],[23,1,23,4],[15,0,16,0],[17,0,18,0],[7,0,9,0],[10,0,14,0],[3,0,3,9],[1,2,1,7],[5,0,6,1],[5,2,6,2],[5,3,6,3],[5,4,6,4],[5,6,6,7],[4,0,4,1],[5,9,6,9],[5,8,6,8]]}
[]
[null,null,"Resum pressupost Modalitat C"]
[]
["Programa de subvencions de l'Ajuntament de Barcelona per a la reactivació i l'enfortiment de l'Economia Social i Solidària i el desenvolupament de projectes d'intercooperació que desenvolupen l'Estratègia #ESSBCN2030"]
["DESPESES PREVISTES",null,null,null,null,null,"INGRESSOS PREVISTOS",null,null,"MODALIDAD C"]
["Despeses directes \n(aquelles que s'identifiquen directament amb el projecte)",null,"Previsió inicial cost total","Previsió reformulada cost total","Import imputat a la subvenció atorgada",null,"Ingressos previstos",null,"Previsió inicial ingrés total","Previsió reformulada ingrés total"]
[]
["A",{"$f":"+'Reformulació Pressupost C'!A24","v":"A.D1.  Honoraris d’arquitecte en la fase de projecte i/ o direcció."},{"$f":"+'Reformulació Pressupost C'!D24","v":0},{"$f":"+'Reformulació Pressupost C'!I24","v":0},{"$f":"+'Reformulació Pressupost C'!G24","v":0},{"$f":"+IF(D8<0,\"No s'admeten valors negatius\",\"\")","v":""},"A.","Subvenció municipal (import sol·licitat a la instància/atorgat)"]
[null,{"$f":"+'Reformulació Pressupost C'!A28","v":"A.D2.  Honoraris d’arquitecte tècnic en la fase de direcció."},{"$f":"+'Reformulació Pressupost C'!D28","v":0},{"$f":"+'Reformulació Pressupost C'!I28","v":0},{"$f":"+'Reformulació Pressupost C'!G28","v":0},{"$f":"+IF(D9<0,\"No s'admeten valors negatius\",\"\")","v":""},"B.","Subvencions d'altres administracions",null,null,{"$f":"+IF(J9<0,\"No s'admeten valors negatius\",\"\")","v":""}]
[null,null,{"$f":"SUM(C8:C9)","v":0},{"$f":"SUM(D8:D9)","v":0},{"$f":"SUM(E8:E9)","v":0},null,"C.","Subvencions d'ens privats",null,null,""]
["B",{"$f":"+'Reformulació Pressupost C'!A36","v":"B.D1.  Honoraris d’arquitecte per definició dels espais comuns per a les activitats col•laboratives sempre i quan no estiguin totalment definits en el Projecte Executiu.\n"},{"$f":"+'Reformulació Pressupost C'!D36","v":0},{"$f":"+'Reformulació Pressupost C'!I36","v":0},{"$f":"+'Reformulació Pressupost C'!G36","v":0},null,"D.","Recursos propis de l'organització aplicats al projecte"]
[null,{"$f":"+'Reformulació Pressupost C'!A40","v":"B.D2.  Honoraris de tècnic agrícola o jardiner pel projecte d’hort i / o jardí comunitari. O honoraris de la gestora pel mateix concepte."},{"$f":"+'Reformulació Pressupost C'!D40","v":0},{"$f":"+'Reformulació Pressupost C'!I40","v":0},{"$f":"+'Reformulació Pressupost C'!G40","v":0},null,"E.","Taquillatge"]
[null,{"$f":"+'Reformulació Pressupost C'!A44","v":"B.D3. Honoraris d’economista per al compte d’explotació de construcció i/o implementació i el d’explotació. O honoraris de la gestora pel mateix concepte."},{"$f":"+'Reformulació Pressupost C'!D44","v":0},{"$f":"+'Reformulació Pressupost C'!I44","v":0},{"$f":"+'Reformulació Pressupost C'!G44","v":0},null,"F.","Quotes d'inscripció"]
[null,{"$f":"+'Reformulació Pressupost C'!A48","v":"B.D4. Honoraris d’enginyer d’organització o tècnic especialista en organització i explotació d’espais i instal•lacions comunes, serveis compartits i aplicacions informàtiques per a l’ús dels socis i veïns si s’escau.  O honoraris de la gestora pel mateix concepte."},{"$f":"+'Reformulació Pressupost C'!D48","v":0},{"$f":"+'Reformulació Pressupost C'!I48","v":0},{"$f":"+'Reformulació Pressupost C'!G48","v":0},null,"G.","Venda de Productes"]
[null,null,{"$f":"SUM(C11:C14)","v":0},{"$f":"SUM(D11:D14)","v":0},{"$f":"SUM(E11:E14)","v":0},null,"H","Publicitat i/o Esponsorització"]
["C",{"$f":"+'Reformulació Pressupost C'!A56","v":"C.D1.  Honoraris de persones o entitats relacionades amb la dinamització, mediació i participació de grups, o de la pròpia gestora per aquests conceptes.\n"},{"$f":"+'Reformulació Pressupost C'!D56","v":0},{"$f":"+'Reformulació Pressupost C'!I56","v":0},{"$f":"+'Reformulació Pressupost C'!G56","v":0},null,"I.","Altres ingressos"]
[null,null,{"$f":"SUM(C16:C16)","v":0},{"$f":"SUM(D16:D16)","v":0},{"$f":"SUM(E16:E16)","v":0},null,null,"Total Ingressos",{"$f":"SUM(I8:I16)","v":0},{"$f":"SUM(J8:J16)","v":0}]
["D",{"$f":"+'Reformulació Pressupost C'!A62","v":"D.D1 Despeses de l'informe d'auditoria (màxim 1.500€ subvenció)"},{"$f":"+'Reformulació Pressupost C'!D62","v":0},{"$f":"+'Reformulació Pressupost C'!I62","v":0},{"$f":"+'Reformulació Pressupost C'!G62","v":0}]
[null,null,{"$f":"SUM(C18:C18)","v":0},{"$f":"SUM(D18:D18)","v":0},{"$f":"SUM(E18:E18)","v":0},null,"Ingressos menys despeses ",null,{"$f":"+I17-C20","v":0},{"$f":"+J17-D20","v":0}]
[null,"Total Despeses C",{"$f":"+C10+C15+C17+C19","v":0},{"$f":"+D10+D15+D17+D19","v":0},{"$f":"+E10+E15+E17+E19","v":0}]
[null,null,null,null,null,null,null,null,"% subvencionat inicialment",{"$f":"I8/C20","v":{"$error":"#DIV/0!"}}]
[]
[null,null,null,null,null,null,null,null,"% subvencionat després de reformular",{"$f":"+J8/D20","v":{"$error":"#DIV/0!"}},"*"]
[null,null,null,null,null,null,"*Aquest percentatge ha de ser igual o menor al percentatge subvencionat inicialment."]